Cogmind - Beta 16 @@@ ROGUE MODE // 2025.11.04 @ 20:48:32 Player: Cameron Result: Destroyed by MN-ZWK(R) with Subdweller Laser Performance ------------- Evolutions (0) 0 Regions Visited (2) 400 Robots Destroyed (8) 40 Value Destroyed (110) 110 Prototype IDs (0) 0 Alien Tech Used (0) 0 Bonus (0) 0 TOTAL SCORE: 550 Bonus ------- None Cogmind --------- Core Integrity 0/250 Matter 290/300 Energy 119/125 System Corruption 0% Temperature Cool (6) Movement Core (3450) Ox68 Location -10/Subcaves Parts ------- > --- POWER (1) -------- Light Ion Engine > --- PROPULSION (2) --- (None) > --- UTILITY (2) ------ Humpback > --- WEAPON (2) ------- Medium Laser Salvaging Laser > --- INVENTORY (35) --- Ion Engine Ion Engine Light Ion Engine Subdweller Power Source Disposable Heat Sink Large Storage Unit Large Storage Unit Large Battery (200) Large Battery (200) Structural Scanner Transport Network Coupler Utility Shielding Utility Shielding Utility Shielding Peak State ------------ > --- POWER ------------ Ion Engine > --- PROPULSION ------- Wheel Compact Wheel > --- UTILITY ---------- Large Storage Unit Backup Plating I > --- WEAPON ----------- Medium Laser Small Laser > --- INVENTORY -------- Ion Engine Aluminum Leg Small Storage Unit Large Storage Unit Structural Scanner Utility Shielding Utility Shielding Utility Shielding EM Pulse Gun Salvaging Laser [Rating: 8] Favorites ----------- Power Ion Engine Engine Ion Engine Propulsion Wheel Leg Aluminum Leg Wheel Wheel Utility Backup Plating I Storage Large Storage Unit Protection Backup Plating I Weapon Salvaging Laser Energy Gun Salvaging Laser Build | -11 -10 -10 ------- Run | Yrd Mat Sub Slots Evolved . | . . . Power . | . . . Propulsion . | . . . Utility . | . . . Weapon . | . . . Parts Attached 15 | 6 2 7 Power 3 | 1 1 1 Engine 3 | 1 1 1 Core . | . . . Reactor . | . . . Propulsion 3 | 2 . 1 Treads . | . . . Leg 1 | . . 1 Wheel 2 | 2 . . Hover . | . . . Flight . | . . . Utility 4 | 1 1 2 Device . | . . . Storage 3 | 1 1 1 Processor . | . . . Hackware . | . . . Protection 1 | . . 1 Artifact . | . . . Weapon 5 | 2 . 3 Energy Gun 5 | 2 . 3 Energy Cannon . | . . . Ballistic Gun . | . . . Ballistic Cannon . | . . . Launcher . | . . . Special Weapon . | . . . Impact Weapon . | . . . Slashing Weapon . | . . . Piercing Weapon . | . . . Special Melee Weapon . | . . . Unidentified Prototypes . | . . . Parts Lost 7 | . . 7 Power 1 | . . 1 Propulsion 3 | . . 3 Utility 1 | . . 1 Weapon 2 | . . 2 Highest Loss Streak 4 | . . 4 To Critical Strikes . | . . . Average Backups 13 | 2 10 14 Power 3 | . 2 3 Propulsion . | 1 1 . Utility 7 | . 5 8 Weapon 1 | . 1 1 Tool/Special . | . . . Unused Backups 14 | . 1 13 Power 4 | . . 4 Propulsion 1 | . 1 . Utility 8 | . . 8 Weapon 1 | . . 1 Tool/Special . | . . . Average Slot Usage (%) 93 | . 98 91 Engine 14 | . 14 14 Leg 4 | . . 6 Wheel 22 | . 28 20 Storage 14 | . 14 14 Protection 8 | . 12 7 Energy Gun 27 | . 28 27 Peak Build Rating 8 | 6 8 8 Average Rating 7 | 4 7 7 On Entrance 4 | . 6 8 Avg Prop Armor Cover (%) 7 | . . 7 Naked Turns . | . . . Heaviest Build 205 | 11 29 205 Greatest Support 26 | 26 26 26 Greatest Overweight (x) 20 | 1 1 20 Average Overweight (x) 2 | . . 4 Largest Inventory Capacity 35 | 8 15 35 Average Capacity 20 | 6 11 24 Most Carried 15 | 4 15 15 Average Carried 13 | 2 10 14 Final Capacity 35 | 8 15 35 Final Carried 15 | 4 15 14 Class Distribution -------------------- 66% | Mutant 33% | Hauler-Mutant Dominant Class ---------------- Mutant | -10/Materials Mutant | -10/Subcaves Resources | -11 -10 -10 ----------- Run | Yrd Mat Sub Matter Collected 370 | 231 49 90 Remotely . | . . . Salvage Created 172 | . 47 125 Parts 17 | . 6 11 Haulers Intercepted . | . . . Recyclers Shooed . | . . . Parts Field Recycled . | . . . Retrieved Matter . | . . . Parts Self-Destructed 11 | . . 11 Prevented . | . . . Parts Restored . | . . . Kills | -11 -10 -10 ------- Run | Yrd Mat Sub Combat Hostiles Destroyed 8 | . 3 5 Guns 8 | . 3 5 Classes Destroyed 2 | . 1 1 Swarmer 7 | . 3 4 Subdweller 1 | . . 1 Best Kill Streak 4 | . 3 4 Combat Bots Only 4 | . 3 4 Max Kills in Single Turn 2 | . 2 1 Gunslinging 1 | . 1 . Exploded . | . . . Melee . | . . . Uniques/NPCs Destroyed . | . . . Combat | -11 -10 -10 -------- Run | Yrd Mat Sub Hostile Shots Fired 78 | . 8 70 Missed 21 | . 4 17 Hits 57 | . 4 53 Projectile 57 | . 4 53 Damage Taken 1033 | . 69 964 Core 250 | . 27 223 Absorbed by Shields . | . . . Core Remaining (%) 100 | 100 . . Volleys Fired 46 | . 4 42 Largest 2 | . 2 2 Hottest 90 | . 90 90 Shots Fired 90 | . 8 82 Gun 90 | . 8 82 Cannon . | . . . Launcher . | . . . Special . | . . . Kinetic . | . . . Thermal 90 | . 8 82 Explosive . | . . . Electromagnetic . | . . . Robot Hit Streak 16 | . 2 16 Robot Miss Streak 3 | . 2 3 Penetration Max . | . . . Secondary Targets 2 | . 1 1 Max Gunslinging Chain 1 | . 1 1 Shots Hit Robots 65 | . 4 61 Core Hits 11 | . 3 8 Critical Kills . | . . . Critical Parts Destroyed . | . . . Critical Strikes . | . . . Melee Attacks . | . . . Impact . | . . . Slashing . | . . . Piercing . | . . . Sneak Attacks . | . . . Combat Hostiles . | . . . Follow-up Attacks . | . . . Damage Inflicted 247 | . 43 204 Guns 247 | . 43 204 Cannons . | . . . Explosions . | . . . Melee . | . . . Ramming . | . . . Kinetic . | . . . Thermal 247 | . 43 204 Explosive . | . . . Electromagnetic . | . . . Impact . | . . . Slashing . | . . . Piercing . | . . . Highest Corruption . | . . . Average Corruption . | . . . Corruption Purged . | . . . Corruption Blocked . | . . . Overload Shots . | . . . Overflow Damage . | . . . Projectiles . | . . . Explosions . | . . . Melee . | . . . Knockbacks . | . . . Impact . | . . . Kinetic . | . . . Secondary . | . . . Self-Inflicted Damage . | . . . Shots . | . . . Rammed . | . . . Targets Rammed . | . . . Kicked . | . . . Crushed . | . . . Highest Temperature 132 | . 132 12 Average Temperature 41 | . 69 7 Received Heat Transfer 198 | . . 198 Siege Activations . | . . . Martial Activations . | . . . Shielding Activations . | . . . Robots Disrupted . | . . . Combat Hostiles . | . . . Robots Corrupted . | . . . Combat Hostiles . | . . . Parts Fried . | . . . Impact Corruptions . | . . . Robots Melted . | . . . Combat Hostiles . | . . . Parts Melted 1 | . . 1 Heat Transferred 674 | . 112 562 Parts Sabotaged . | . . . Parts Stolen . | . . . Parts Stripped . | . . . Power Chain Reactions . | . . . Alert | -11 -10 -10 ------- Run | Yrd Mat Sub Maximum Alert Level . | . . . Low Security (%) 100 | 100 100 . Level 1 . | . . . Level 2 . | . . . Level 3 . | . . . Level 4 . | . . . Level 5 . | . . . High Security . | . . . Max Security . | . . . Peak Influence 60 | . 60 . Initial . | . . . Average 10 | . 11 . Influence Increases 193 | . 83 110 Destroy 0b10 Robot/C 140 | . 60 80 Destroy Leader 10 | . 10 . Successful Hack 13 | . 13 . Lose Combat Pursuer 30 | . . 30 Influence Decreases 193 | . 63 130 Entered New Map 10 | . . 10 Time Decay 143 | . 63 80 Lost Part 40 | . . 40 Squads Dispatched 1 | . 1 . Investigation 1 | . 1 . Extermination . | . . . Reinforcement . | . . . Assault . | . . . Garrison . | . . . Intercept . | . . . Searches Triggered . | . . . Construction Impeded . | . . . Haulers Reinforced . | . . . Active Scanning Responses . | . . . Cargo Convoy Interrupts . | . . . Stealth | -11 -10 -10 --------- Run | Yrd Mat Sub Distress Signals 1 | . 1 . Communications Jammed . | . . . Distress Signals . | . . . Times Spotted 12 | . 3 9 Peak Tracking Total 6 | . 3 6 Tactical Retreats 1 | . . 1 Traps | -11 -10 -10 ------- Run | Yrd Mat Sub Traps Triggered 2 | . 2 . Indirectly . | . . . Trap Hack Attempts . | . . . Triggered . | . . . Disarmed . | . . . Reprogrammed . | . . . Reused . | . . . Traps Extracted . | . . . Installed . | . . . Triggered . | . . . Machines | -11 -10 -10 ---------- Run | Yrd Mat Sub Machines Disabled . | . . . Max in Single Turn . | . . . Machines Repaired . | . . . Machines Dismantled . | . . . Machines Sabotaged . | . . . Overloaded Fab Kills . | . . . Hacking | -11 -10 -10 --------- Run | Yrd Mat Sub Machines Accessed 5 | . 4 1 Terminals 3 | . 3 . Fabricators . | . . . Repair Stations 1 | . 1 . Recycling Units . | . . . Scanalyzers . | . . . Garrison Access . | . . . Total Hacks 12 | . 8 4 Successful 7 | . 3 4 Failed 5 | . 5 . Catastrophic 2 | . 2 . Database Lockouts . | . . . Manual 3 | . 3 . Terminals 7 | . 7 . Fabricators . | . . . Repair Stations 1 | . 1 . Recycling Units . | . . . Scanalyzers . | . . . Garrison Access . | . . . Terminal Hacks 6 | . 2 4 Record 4 | . . 4 Terminal Index 1 | . 1 . Registered Components 1 | . 1 . Fabricator Hacks . | . . . Repair Station Hacks 1 | . 1 . Refit 1 | . 1 . Recycling Unit Hacks . | . . . Scanalyzer . | . . . Garrison Access Hacks . | . . . Unauthorized Hacks . | . . . Terminals . | . . . Fabricators . | . . . Repair Stations . | . . . Recycling Units . | . . . Scanalyzers . | . . . Garrison Access . | . . . Data Cores Recovered . | . . . Used . | . . . Hacking Detections 3 | . 3 . Full Trace Events 1 | . 1 . Feedback Events . | . . . Feedback Blocked . | . . . Robot Schematics Acquired . | . . . Robots Built . | . . . Authchips . | . . . Time . | . . . Total Robot Build Rating . | . . . Part Schematics Acquired . | . . . Parts Built . | . . . Authchips . | . . . Time . | . . . Total Part Build Rating . | . . . Part Studies Acquired . | . . . Parts Repaired . | . . . Time . | . . . Parts Recycled . | . . . Recycled Matter . | . . . Retrieved Matter . | . . . Retrieved Components . | . . . Parts Scanalyzed . | . . . Part Schematics Acquired . | . . . Parts Damaged . | . . . Bothacking | -11 -10 -10 ------------ Run | Yrd Mat Sub Used RIF Installer . | . . . Robots Hacked . | . . . Non-combat . | . . . Combat . | . . . Robot Hacks Applied . | . . . Relay Couplers Released . | . . . Fabnet Peak Effective % . | . . . Robots Rewired . | . . . Allies Hacked . | . . . Hacks Repelled . | . . . Allies | -11 -10 -10 -------- Run | Yrd Mat Sub Total Allies . | . . . Largest Group . | . . . Highest-Rated Group . | . . . Highest-Rated Ally . | . . . Total Orders . | . . . Ally Attacks . | . . . Total Damage . | . . . Kills . | . . . Allies Corrupted . | . . . Allies Melted . | . . . Intel | -11 -10 -10 ------- Run | Yrd Mat Sub Active Infowar (turns) . | . . . Robot Analysis Total . | . . . Derelict Logs Recovered 1 | . . 1 Drone Launches . | . . . Drone Recoveries . | . . . Exploration | -11 -10 -10 ------------- Run | Yrd Mat Sub Turns Passed 1335 | 41 357 937 Spaces Moved 855 | 34 327 494 Core 3 | 3 . . Treads . | . . . Legs 3 | . . 3 Wheels 849 | 31 327 491 Hover . | . . . Flight . | . . . Fastest Speed 50 | 50 90 105 Average Speed 133 | 84 97 159 Slowest Speed 1520 | 95 105 1520 Overloaded Moves . | . . . Propulsion Burnouts . | . . . Robots Hopped . | . . . Potential Cave-ins . | . . . Cave-ins Triggered . | . . . Exploration Rate (%) 28 | 3 60 23 Regions Visited 2 Branch Regions 1 Pre-discovered Areas 1 | . . 1 Known Exits Taken . | . . . Unknown Exits Taken 2 | 1 1 . Scrap Searched . | . . . Spaces Dug . | . . . Terrain Destroyed . | . . . Melee . | . . . Projectile . | . . . AOE . | . . . Terrain Rammed . | . . . Walls Destroyed . | . . . Machines Disabled . | . . . Actions | -11 -10 -10 --------- Run | Yrd Mat Sub Total 989 | 43 357 589 Wait 31 | . 10 21 Move 853 | 33 326 494 Hop . | . . . Pick Up 30 | 4 12 14 Fast Attach 7 | 6 . 1 Attach 6 | . . 6 Detach . | . . . Swap 6 | . 2 4 Drop 10 | . 3 7 Fire 46 | . 4 42 Melee . | . . . Ram . | . . . Kick . | . . . Crush . | . . . Escape Stasis . | . . . Rewire . | . . . Trap . | . . . Miscellaneous . | . . . Route ------- -11/Scrapyard -10/Materials (discovered 4 exits: [*Mat] / [*Min x2] / *Sub) -10/Subcaves (discovered 2 exits: [*Rec] / [Scr]) History --------- Turn | Location | Event 23 | -11/Scrapyard | Discovered new exit (range 15) 42 | -11/Scrapyard | Entered Materials 43 | -10/Materials | Met a group of wandering Federalists 178 | -10/Materials | Discovered new exit (range 15) 248 | -10/Materials | Discovered new exit (range 8) 312 | -10/Materials | Build established: Mutant 348 | -10/Materials | Discovered new exit (range 6) 390 | -10/Materials | Discovered new exit (range 8) 399 | -10/Materials | Entered Subcaves 400 | -10/Subcaves | Continued accompanying wandering Federalists (4) 400 | -10/Subcaves | Approached by a straggling Scientist 436 | -10/Subcaves | Shifting Twisted Machinery released Shrapnel Trap 438 | -10/Subcaves | Shifting Twisted Machinery released Sub. Monowheel 585 | -10/Subcaves | Visited Clippyterm 589 | -10/Subcaves | Learned Factory fabricator intel 753 | -10/Subcaves | Learned location of Zion (-6) 779 | -10/Subcaves | A swath of the cavern ceiling suddenly collapsed 800 | -10/Subcaves | Discovered new exit (range 10) 896 | -10/Subcaves | Core integrity fell below 50% 916 | -10/Subcaves | Lost 4 parts (1p1n1u1w) 1192 | -10/Subcaves | Build established: Hauler-Mutant 1309 | -10/Subcaves | Core integrity fell below 20% 1336 | -10/Subcaves | Destroyed by MN-ZWK(R) with Subdweller Laser Last Messages --------------- 00938_ Acquired Sub. Power Source. 00942_ Extracted 1 energy. 00946_ Acquired Lrg. Battery. 00951_ Acquired Ion Engine. 00956_ Acquired Utility Shielding. 00961_ Acquired Lrg. Storage Unit. 00969_ 6S-AGF(u) tweaks Twisted Machinery. ZP-Q7W(c): "I think it's somewhere south of here" 01025_ 6S-AGF(u) tweaks Twisted Machinery. ZP-Q7W(c): "I think it's somewhere south of here" 01118_ 6S-AGF(u) tweaks Twisted Machinery. ZP-Q7W(c): "I think it's somewhere south of here" 01268_ Wheel destroyed. 01290_ Salvaging Laser destroyed. 01310_ Aluminum Leg destroyed. ZP-Q7W(c): "I think it's somewhere south of here" Map ----- +----------------------------------------------------+ | ???????????????????????### & #??? | | ?????????????????????????## """"" ##?? | | ??????????????????????????# "= " ##? | | ??????????????????????????##" ### #? | | ???????????????????????????####?## #? | | ???????????????????????????????### ##? | | ???????????????????????????????# ## #?? | | ???????????????????????????????# #### #?? | | ???????????????????????????????# ###??# ##? | | ??????????????????????????????## ##????# ## | | ??????????????????????????????# #?????# # | | ???????????????????????????""##" ######## | | ???????????????????????????""""" ## ###### | | ???????????????????????????""""" ##?## # | | ???????????????????????????""""" " ####### | | ???????????????????##??????"""#"##""" ## | | ???????????????????? ?????? " ##?####" # | | ???????????????????? ?????????????#### ## | | ????????????????????? ????????????????# ####### | | ????????????????????## ????????????????# #??##### | | ????????????????????# ???????????????# ##?## | | ????????????????????# ????###???????? #?## | | ?????????????????????# #### "##??????###### | | ????????????????????## "R"""" #?????????## | | ??????????????????"##" " #?########## # | | ??????????????????""""" @ #### # # ### | | ??????????????????"""""u #### #?# | | ?????????????????? """" " ### ## ## #?### | | ?????????????????? # """" "####### #?# | | ????????????????????###"""" c ###?????######## | | ??????????????????????#"""""## ##???????????### | | ??????????????????????## "####???????????## | | ???????????????????????## ""############## | | ????????????????????????# "" ## | | ????????????????????????## "" # | | ?????????????????????????##"" % """ | | ??????????????????????????## ##"#"#### | | ???????????????????????????# #######??# | | ????????????????????????####" ##?????### # | | ????????????????????????#"" " ##???#"""" ### | | ????????????????????????##"""" #??#""""" ##?# | | ?????????????????????????##"""" ####""""## ##??? | | ??????????????????????????###" """#?# #???? | | ????????????????????????????### """## #???# | | ??????????????????????????????##### ## ???# | | ??????????????????????????????????# "" #??? | | ??????????????????????????????????## "" ##??? | | ????????????????????????????????????### "###???? | | ???????????????????????????????????????#####?????? | | ?????????????????????????????????????????????????? | +----------------------------------------------------+ Best States ------------- Heat Dissipation 25 Energy Generation 10 Energy Capacity 250 Matter Stores 300 Matter Capacity 300 Sight Range 16 Terrain Scan Density 10 Armor Coverage 80 Utility Shielding 33 Evasion (%) 44 Item Schematics ----------------- None Robot Schematics ------------------ None Fabricated ------------ Nothing Repaired ---------- Nothing Studied --------- None Alien Tech Used ----------------- None Achievements -------------- Strength In Numbers Challenges ------------ None Game ------ Seed RecyclingTargetingFragment Manual? 0 Play Time 00:14:40 Cumulative 52.8 hours Start 2025.11.04 @ 20:33:45 End 2025.11.04 @ 20:48:32 Sessions 1 Manual Loads 0 Difficulty Rogue Special Mode None Game No. 53 Rogue 53 Adventurer 0 Explorer 0 Win Type - Total 1 Types 1/0/0/0/0/0/0/0/0/0 Lore% 30 Gallery% 36 Achievement% 28 Wizard Run 0 Options --------- Layout 1 ASCII 0 Keyboard 0 Movement Numpad Keybinds 0 Fullscreen 2 Font 32/SmallcapsGlow Map View 50x35 Zoom Use 0% Tactical HUD 1 Map Filters NONE Filters NONE Steam 1 RUN: 29a71f2e-dae9-4042-a53f-f52101b8ed19